[Event "Titled Tuesday Blitz February 22 Late 2022"]
[White "Todorovic, Bojan"]
[Black "Stanisz, Patryk"]
[WhiteFideId "917087"]
[BlackFideId "1123106"]
[WhiteElo "2266"]
[BlackElo "1876"]
[Result "1-0"]
[Round "08"]
[TimeControl "180+1"]
[Date "2022.02.23"]
[WhiteClock "0:00:13"]
[BlackClock "0:00:04"]

1. Nf3 {[%clk 0:03:00]}  d5 {[%clk 0:02:58]} 2. c4 {[%clk 0:02:59]}  c6 {[%clk 0:02:58]} 3. b3 {[%clk 0:02:58]}  Nf6 {[%clk 0:02:57]} 4. Bb2 {[%clk 0:02:58]}  Bf5 {[%clk 0:02:52]} 5. g3 {[%clk 0:02:57]}  e6 {[%clk 0:02:52]} 6. Bg2 {[%clk 0:02:57]}  Nbd7 {[%clk 0:02:51]} 7. O-O {[%clk 0:02:57]}  Be7 {[%clk 0:02:49]} 8. d3 {[%clk 0:02:57]}  O-O {[%clk 0:02:49]} 9. Nbd2 {[%clk 0:02:57]}  h6 {[%clk 0:02:50]} 10. Re1 {[%clk 0:02:52]}  Bh7 {[%clk 0:02:48]} 11. Qc2 {[%clk 0:02:28]}  b5 {[%clk 0:02:36]} 12. a4 {[%clk 0:02:23]}  a6 {[%clk 0:02:34]} 13. axb5 {[%clk 0:02:18]}  axb5 {[%clk 0:02:35]} 14. Nd4 {[%clk 0:02:15]}  Qb6 {[%clk 0:02:21]} 15. cxb5 {[%clk 0:02:10]}  cxb5 {[%clk 0:02:18]} 16. Qc6 {[%clk 0:02:01]}  Qxc6 {[%clk 0:01:42]} 17. Nxc6 {[%clk 0:02:00]}  Bd6 {[%clk 0:01:42]} 18. Nf3 {[%clk 0:01:50]}  Rfc8 {[%clk 0:01:38]} 19. Nfd4 {[%clk 0:01:45]}  e5 {[%clk 0:01:15]} 20. Rxa8 {[%clk 0:01:38]}  Rxa8 {[%clk 0:01:10]} 21. Nxb5 {[%clk 0:01:38]}  Ra2 {[%clk 0:01:09]} 22. Nxd6 {[%clk 0:01:20]}  Rxb2 {[%clk 0:01:08]} 23. Ne7+ {[%clk 0:01:18]}  Kf8 {[%clk 0:01:06]} 24. Nxd5 {[%clk 0:01:16]}  Rxb3 {[%clk 0:01:04]} 25. Ra1 {[%clk 0:01:04]}  Nxd5 {[%clk 0:00:53]} 26. Bxd5 {[%clk 0:01:03]}  Rb2 {[%clk 0:00:49]} 27. Ra8+ {[%clk 0:00:48]}  Ke7 {[%clk 0:00:35]} 28. Nc8+ {[%clk 0:00:47]}  Kd8 {[%clk 0:00:35]} 29. Nb6+ {[%clk 0:00:42]}  Ke7 {[%clk 0:00:23]} 30. Nxd7 {[%clk 0:00:40]}  Kxd7 {[%clk 0:00:21]} 31. Ra7+ {[%clk 0:00:38]}  Kd6 {[%clk 0:00:20]} 32. Bxf7 {[%clk 0:00:32]}  Rxe2 {[%clk 0:00:20]} 33. Bc4 {[%clk 0:00:30]}  Rd2 {[%clk 0:00:17]} 34. Rxg7 {[%clk 0:00:28]}  Bxd3 {[%clk 0:00:17]} 35. Bxd3 {[%clk 0:00:28]}  Rxd3 {[%clk 0:00:18]} 36. Rg6+ {[%clk 0:00:28]}  Kd5 {[%clk 0:00:19]} 37. Rxh6 {[%clk 0:00:28]}  Ke4 {[%clk 0:00:19]} 38. Rf6 {[%clk 0:00:26]}  Rd7 {[%clk 0:00:18]} 39. Kg2 {[%clk 0:00:25]}  Kd5 {[%clk 0:00:19]} 40. h4 {[%clk 0:00:25]}  e4 {[%clk 0:00:19]} 41. Rf8 {[%clk 0:00:20]}  Ke5 {[%clk 0:00:17]} 42. Re8+ {[%clk 0:00:20]}  Kf5 {[%clk 0:00:17]} 43. Kh3 {[%clk 0:00:19]}  Rd2 {[%clk 0:00:16]} 44. g4+ {[%clk 0:00:18]}  Kf4 {[%clk 0:00:14]} 45. Rf8+ {[%clk 0:00:18]}  Ke5 {[%clk 0:00:15]} 46. Rf5+ {[%clk 0:00:18]}  Kd4 {[%clk 0:00:14]} 47. h5 {[%clk 0:00:19]}  Rd1 {[%clk 0:00:10]} 48. Kg3 {[%clk 0:00:17]}  Rg1+ {[%clk 0:00:10]} 49. Kf4 {[%clk 0:00:17]}  Rf1 {[%clk 0:00:09]} 50. Kg5 {[%clk 0:00:17]}  Rh1 {[%clk 0:00:05]} 51. h6 {[%clk 0:00:17]}  e3 {[%clk 0:00:05]} 52. fxe3+ {[%clk 0:00:16]}  Kxe3 {[%clk 0:00:06]} 53. Kg6 {[%clk 0:00:16]}  Ke4 {[%clk 0:00:05]} 54. h7 {[%clk 0:00:16]}  Rh4 {[%clk 0:00:04]} 55. Rh5 {[%clk 0:00:14]}  Rxg4+ {[%clk 0:00:04]} 56. Kf7 {[%clk 0:00:14]}  Rf4+ {[%clk 0:00:03]} 57. Ke7 {[%clk 0:00:14]}  Kf3 {[%clk 0:00:02]} 58. h8=Q {[%clk 0:00:14]}  Kg4 {[%clk 0:00:03]} 59. Rh4+ {[%clk 0:00:13]}  Kg3 {[%clk 0:00:04]} 60. Rxf4 {[%clk 0:00:13]} 1-0


[Site "https://www.chess.com"]

[Event "Titled Tuesday Blitz February 22 Late 2022"]
[White "Vifleemskaia, Svetlana"]
[Black "Levine, Joseph"]
[WhiteFideId "4129490"]
[BlackFideId "30940346"]
[WhiteElo "1901"]
[BlackElo "1802"]
[Result "1-0"]
[Round "08"]
[TimeControl "180+1"]
[Date "2022.02.23"]
[WhiteClock "0:00:04"]
[BlackClock "0:00:03"]

1. d4 {[%clk 0:03:00]}  d5 {[%clk 0:02:59]} 2. c4 {[%clk 0:03:00]}  e6 {[%clk 0:02:59]} 3. Nc3 {[%clk 0:03:00]}  Nf6 {[%clk 0:02:59]} 4. cxd5 {[%clk 0:03:00]}  exd5 {[%clk 0:02:59]} 5. Bg5 {[%clk 0:03:01]}  c6 {[%clk 0:02:59]} 6. e3 {[%clk 0:03:01]}  Bd6 {[%clk 0:02:59]} 7. Bd3 {[%clk 0:03:01]}  O-O {[%clk 0:02:59]} 8. Qc2 {[%clk 0:03:00]}  h6 {[%clk 0:02:59]} 9. Bh4 {[%clk 0:03:00]}  Re8 {[%clk 0:03:00]} 10. Nge2 {[%clk 0:03:00]}  Nbd7 {[%clk 0:03:00]} 11. h3 {[%clk 0:02:56]}  Nf8 {[%clk 0:02:59]} 12. O-O {[%clk 0:02:56]}  Be6 {[%clk 0:02:58]} 13. f4 {[%clk 0:02:53]}  Bxh3 {[%clk 0:02:40]} 14. gxh3 {[%clk 0:02:47]}  Rxe3 {[%clk 0:02:40]} 15. Kg2 {[%clk 0:02:35]}  Qd7 {[%clk 0:02:36]} 16. f5 {[%clk 0:02:26]}  Rae8 {[%clk 0:02:21]} 17. Rf3 {[%clk 0:02:20]}  Rxf3 {[%clk 0:01:39]} 18. Kxf3 {[%clk 0:02:19]}  Ng6 {[%clk 0:01:34]} 19. Bxf6 {[%clk 0:02:02]}  gxf6 {[%clk 0:01:29]} 20. Rg1 {[%clk 0:01:58]}  Kh8 {[%clk 0:01:20]} 21. fxg6 {[%clk 0:01:49]}  Qxh3+ {[%clk 0:01:19]} 22. Ng3 {[%clk 0:01:49]}  fxg6 {[%clk 0:01:12]} 23. Bxg6 {[%clk 0:01:43]}  Rg8 {[%clk 0:01:02]} 24. Qf5 {[%clk 0:01:41]}  Qh4 {[%clk 0:00:53]} 25. Nce2 {[%clk 0:01:34]}  Qg5 {[%clk 0:00:42]} 26. Qxg5 {[%clk 0:01:31]}  fxg5 {[%clk 0:00:43]} 27. Bf5 {[%clk 0:01:25]}  Rf8 {[%clk 0:00:39]} 28. Kg4 {[%clk 0:01:23]}  b6 {[%clk 0:00:32]} 29. Rf1 {[%clk 0:01:17]}  c5 {[%clk 0:00:31]} 30. Be6 {[%clk 0:01:09]}  Re8 {[%clk 0:00:23]} 31. Bxd5 {[%clk 0:01:07]}  cxd4 {[%clk 0:00:14]} 32. Nxd4 {[%clk 0:00:59]}  Be5 {[%clk 0:00:13]} 33. Ngf5 {[%clk 0:00:54]}  Rd8 {[%clk 0:00:11]} 34. Nxh6 {[%clk 0:00:35]}  Rxd5 {[%clk 0:00:08]} 35. Nf7+ {[%clk 0:00:32]}  Kg8 {[%clk 0:00:07]} 36. Nxe5 {[%clk 0:00:32]}  Rxd4+ {[%clk 0:00:06]} 37. Kxg5 {[%clk 0:00:29]}  Rd2 {[%clk 0:00:07]} 38. Nc4 {[%clk 0:00:21]}  Rc2 {[%clk 0:00:06]} 39. Rf4 {[%clk 0:00:18]}  b5 {[%clk 0:00:06]} 40. Nd6 {[%clk 0:00:14]}  Rxb2 {[%clk 0:00:06]} 41. Kg6 {[%clk 0:00:10]}  Rg2+ {[%clk 0:00:03]} 42. Kf6 {[%clk 0:00:09]}  Rxa2 {[%clk 0:00:03]} 43. Rg4+ {[%clk 0:00:09]}  Kf8 {[%clk 0:00:03]} 44. Nf5 {[%clk 0:00:09]}  Ra6+ {[%clk 0:00:04]} 45. Ke5 {[%clk 0:00:08]}  Rb6 {[%clk 0:00:03]} 46. Rg7 {[%clk 0:00:06]}  b4 {[%clk 0:00:02]} 47. Rxa7 {[%clk 0:00:05]}  b3 {[%clk 0:00:03]} 48. Ra1 {[%clk 0:00:03]}  b2 {[%clk 0:00:03]} 49. Rb1 {[%clk 0:00:03]}  Kf7 {[%clk 0:00:03]} 50. Ke4 {[%clk 0:00:03]}  Kf6 {[%clk 0:00:03]} 51. Nd4 {[%clk 0:00:04]}  Rb4 {[%clk 0:00:03]} 52. Kd3 {[%clk 0:00:04]}  Rb8 {[%clk 0:00:02]} 53. Kc3 {[%clk 0:00:05]}  Ke5 {[%clk 0:00:03]} 54. Nc6+ {[%clk 0:00:04]} 1-0


[Site "https://www.chess.com"]

[Event "Titled Tuesday Blitz February 22 Late 2022"]
[White "Willathgamuwa, Kevin"]
[Black "Weetik, Vjacheslav"]
[WhiteFideId "3214168"]
[BlackFideId "4153472"]
[WhiteElo "1943"]
[BlackElo "2469"]
[Result "0-1"]
[Round "08"]
[TimeControl "180+1"]
[Date "2022.02.23"]
[WhiteClock "0:00:01"]
[BlackClock "0:00:10"]

1. e4 {[%clk 0:03:00]}  e5 {[%clk 0:02:56]} 2. Nf3 {[%clk 0:02:59]}  Nc6 {[%clk 0:02:55]} 3. d4 {[%clk 0:02:59]}  exd4 {[%clk 0:02:54]} 4. Bc4 {[%clk 0:03:00]}  Nf6 {[%clk 0:02:53]} 5. e5 {[%clk 0:03:00]}  d5 {[%clk 0:02:53]} 6. Bb5 {[%clk 0:03:00]}  Ne4 {[%clk 0:02:53]} 7. Nxd4 {[%clk 0:02:59]}  Bd7 {[%clk 0:02:54]} 8. Bxc6 {[%clk 0:02:59]}  bxc6 {[%clk 0:02:54]} 9. O-O {[%clk 0:03:00]}  Bc5 {[%clk 0:02:45]} 10. f3 {[%clk 0:03:00]}  Ng5 {[%clk 0:02:44]} 11. Be3 {[%clk 0:03:00]}  Bb6 {[%clk 0:02:36]} 12. f4 {[%clk 0:02:39]}  Ne4 {[%clk 0:02:24]} 13. Nd2 {[%clk 0:02:38]}  c5 {[%clk 0:02:16]} 14. N4f3 {[%clk 0:02:06]}  Nxd2 {[%clk 0:01:55]} 15. Qxd2 {[%clk 0:01:52]}  d4 {[%clk 0:01:53]} 16. Bf2 {[%clk 0:01:52]}  Bc6 {[%clk 0:01:51]} 17. Bh4 {[%clk 0:01:48]}  Qd5 {[%clk 0:01:49]} 18. f5 {[%clk 0:01:35]}  h6 {[%clk 0:01:16]} 19. Rae1 {[%clk 0:01:33]}  c4 {[%clk 0:01:07]} 20. Kh1 {[%clk 0:00:32]}  Kd7 {[%clk 0:00:22]} 21. e6+ {[%clk 0:00:21]}  Kc8 {[%clk 0:00:22]} 22. exf7 {[%clk 0:00:18]}  Qxf7 {[%clk 0:00:21]} 23. Ne5 {[%clk 0:00:18]}  Qd5 {[%clk 0:00:22]} 24. Nxc6 {[%clk 0:00:17]}  Qxc6 {[%clk 0:00:22]} 25. Re7 {[%clk 0:00:17]}  Kb7 {[%clk 0:00:22]} 26. Rxg7 {[%clk 0:00:16]}  c3 {[%clk 0:00:22]} 27. bxc3 {[%clk 0:00:14]}  dxc3 {[%clk 0:00:23]} 28. Qd7 {[%clk 0:00:12]}  Qe4 {[%clk 0:00:22]} 29. Qd3 {[%clk 0:00:09]}  Qxh4 {[%clk 0:00:20]} 30. f6 {[%clk 0:00:07]}  Rad8 {[%clk 0:00:18]} 31. Qf3+ {[%clk 0:00:07]}  Kb8 {[%clk 0:00:19]} 32. f7 {[%clk 0:00:07]}  Rhf8 {[%clk 0:00:20]} 33. Rg4 {[%clk 0:00:05]}  Qe7 {[%clk 0:00:16]} 34. Rf4 {[%clk 0:00:03]}  Qe5 {[%clk 0:00:10]} 35. Rf5 {[%clk 0:00:02]}  Qd4 {[%clk 0:00:10]} 36. Rf4 {[%clk 0:00:01]}  Qd2 {[%clk 0:00:10]} 0-1


[Site "https://www.chess.com"]

[Event "Titled Tuesday Blitz February 22 Late 2022"]
[White "Wu, Christopher"]
[Black "Piesik, Piotr"]
[WhiteFideId "2040875"]
[BlackFideId "1136194"]
[WhiteElo "2638"]
[BlackElo "2232"]
[Result "0-1"]
[Round "08"]
[TimeControl "180+1"]
[Date "2022.02.23"]
[WhiteClock "0:00:11"]
[BlackClock "0:00:56"]

1. d4 {[%clk 0:03:00]}  c5 {[%clk 0:02:41]} 2. d5 {[%clk 0:02:59]}  e5 {[%clk 0:02:37]} 3. c4 {[%clk 0:02:56]}  d6 {[%clk 0:02:37]} 4. Nc3 {[%clk 0:02:57]}  Be7 {[%clk 0:02:37]} 5. e4 {[%clk 0:02:56]}  Bg5 {[%clk 0:02:37]} 6. Bd3 {[%clk 0:02:52]}  Bxc1 {[%clk 0:02:37]} 7. Rxc1 {[%clk 0:02:52]}  Ne7 {[%clk 0:02:38]} 8. a3 {[%clk 0:02:51]}  O-O {[%clk 0:02:38]} 9. Nge2 {[%clk 0:02:50]}  Ng6 {[%clk 0:02:38]} 10. O-O {[%clk 0:02:49]}  Nd7 {[%clk 0:02:37]} 11. Qd2 {[%clk 0:02:43]}  Qe7 {[%clk 0:02:33]} 12. b4 {[%clk 0:02:37]}  a5 {[%clk 0:02:33]} 13. bxa5 {[%clk 0:02:28]}  Rxa5 {[%clk 0:02:30]} 14. Nb5 {[%clk 0:02:28]}  Ra6 {[%clk 0:02:29]} 15. g3 {[%clk 0:02:22]}  Nb6 {[%clk 0:02:27]} 16. Kh1 {[%clk 0:02:16]}  Bh3 {[%clk 0:02:24]} 17. Rg1 {[%clk 0:01:56]}  Bd7 {[%clk 0:02:22]} 18. Rb1 {[%clk 0:01:51]}  Nc8 {[%clk 0:02:08]} 19. Rb3 {[%clk 0:01:42]}  Bxb5 {[%clk 0:02:05]} 20. cxb5 {[%clk 0:01:41]}  Ra4 {[%clk 0:01:57]} 21. Rc3 {[%clk 0:01:31]}  Nb6 {[%clk 0:01:56]} 22. Qc2 {[%clk 0:01:10]}  Rfa8 {[%clk 0:01:55]} 23. Qc1 {[%clk 0:01:04]}  Nf8 {[%clk 0:01:47]} 24. f4 {[%clk 0:01:01]}  Nfd7 {[%clk 0:01:46]} 25. f5 {[%clk 0:00:58]}  c4 {[%clk 0:01:43]} 26. Bxc4 {[%clk 0:00:49]}  Nxc4 {[%clk 0:01:42]} 27. Rxc4 {[%clk 0:00:49]}  Rxc4 {[%clk 0:01:39]} 28. Qxc4 {[%clk 0:00:50]}  Nc5 {[%clk 0:01:39]} 29. Nc3 {[%clk 0:00:42]}  Rxa3 {[%clk 0:01:38]} 30. b6 {[%clk 0:00:40]}  h6 {[%clk 0:01:31]} 31. Re1 {[%clk 0:00:33]}  Qg5 {[%clk 0:01:30]} 32. Nb5 {[%clk 0:00:32]}  Re3 {[%clk 0:01:26]} 33. Qc1 {[%clk 0:00:26]}  Re2 {[%clk 0:01:04]} 34. Nc3 {[%clk 0:00:19]}  Rxe1+ {[%clk 0:00:59]} 35. Qxe1 {[%clk 0:00:19]}  Nd3 {[%clk 0:00:59]} 36. Qe2 {[%clk 0:00:12]}  Qc1+ {[%clk 0:00:56]} 37. Nd1 {[%clk 0:00:11]}  Qxd1+ {[%clk 0:00:56]} 0-1


[Site "https://www.chess.com"]

[Event "Titled Tuesday Blitz February 22 Late 2022"]
[White "Yuan, Qingyu"]
[Black "Chigaev, Maksim"]
[WhiteFideId "8609772"]
[BlackFideId "4108116"]
[WhiteElo "2359"]
[BlackElo "2502"]
[Result "0-1"]
[Round "08"]
[TimeControl "180+1"]
[Date "2022.02.22"]
[WhiteClock "0:00:03"]
[BlackClock "0:00:04"]

1. Nf3 {[%clk 0:03:00]}  Nf6 {[%clk 0:02:59]} 2. g3 {[%clk 0:03:01]}  b5 {[%clk 0:02:58]} 3. Bg2 {[%clk 0:03:01]}  Bb7 {[%clk 0:02:58]} 4. O-O {[%clk 0:03:01]}  c5 {[%clk 0:02:57]} 5. d3 {[%clk 0:02:59]}  g6 {[%clk 0:02:55]} 6. b3 {[%clk 0:02:59]}  Bg7 {[%clk 0:02:55]} 7. Bb2 {[%clk 0:02:59]}  O-O {[%clk 0:02:55]} 8. c4 {[%clk 0:02:57]}  a6 {[%clk 0:02:52]} 9. Nbd2 {[%clk 0:02:57]}  d6 {[%clk 0:02:52]} 10. Rc1 {[%clk 0:02:51]}  Nbd7 {[%clk 0:02:49]} 11. Rc2 {[%clk 0:02:51]}  e5 {[%clk 0:02:37]} 12. Qa1 {[%clk 0:02:48]}  Qe7 {[%clk 0:02:36]} 13. Rd1 {[%clk 0:02:42]}  h6 {[%clk 0:02:32]} 14. e3 {[%clk 0:02:30]}  Rfe8 {[%clk 0:02:27]} 15. a3 {[%clk 0:02:16]}  Rac8 {[%clk 0:02:16]} 16. Rdc1 {[%clk 0:02:08]}  Nb6 {[%clk 0:02:07]} 17. Bc3 {[%clk 0:01:50]}  Nbd7 {[%clk 0:01:58]} 18. Bb2 {[%clk 0:01:50]}  bxc4 {[%clk 0:01:51]} 19. Nxc4 {[%clk 0:01:36]}  e4 {[%clk 0:01:42]} 20. dxe4 {[%clk 0:01:29]}  Bxe4 {[%clk 0:01:43]} 21. Rd2 {[%clk 0:01:28]}  d5 {[%clk 0:01:43]} 22. Na5 {[%clk 0:01:23]}  Nh5 {[%clk 0:01:39]} 23. Nh4 {[%clk 0:01:12]}  Bxg2 {[%clk 0:01:34]} 24. Nxg2 {[%clk 0:01:09]}  Bxb2 {[%clk 0:01:24]} 25. Qxb2 {[%clk 0:01:09]}  Nhf6 {[%clk 0:01:24]} 26. Nf4 {[%clk 0:01:02]}  Ne5 {[%clk 0:01:22]} 27. Rdd1 {[%clk 0:00:57]}  d4 {[%clk 0:01:16]} 28. exd4 {[%clk 0:00:47]}  Nf3+ {[%clk 0:01:16]} 29. Kh1 {[%clk 0:00:39]}  cxd4 {[%clk 0:00:59]} 30. Rxc8 {[%clk 0:00:30]}  Rxc8 {[%clk 0:00:59]} 31. Nc4 {[%clk 0:00:30]}  Rd8 {[%clk 0:00:38]} 32. Qe2 {[%clk 0:00:29]}  Qb7 {[%clk 0:00:32]} 33. Na5 {[%clk 0:00:27]}  Qa8 {[%clk 0:00:32]} 34. Ng2 {[%clk 0:00:27]}  Re8 {[%clk 0:00:20]} 35. Qc4 {[%clk 0:00:21]}  Ng4 {[%clk 0:00:15]} 36. Qf1 {[%clk 0:00:14]}  d3 {[%clk 0:00:13]} 37. h3 {[%clk 0:00:12]}  Nfh2 {[%clk 0:00:08]} 38. Qg1 {[%clk 0:00:10]}  Re2 {[%clk 0:00:05]} 39. hxg4 {[%clk 0:00:09]}  Nxg4 {[%clk 0:00:06]} 40. Rf1 {[%clk 0:00:04]}  Qf3 {[%clk 0:00:06]} 41. Nc4 {[%clk 0:00:03]}  Nxf2+ {[%clk 0:00:06]} 42. Kh2 {[%clk 0:00:03]}  d2 {[%clk 0:00:07]} 43. Nxd2 {[%clk 0:00:03]}  Rxd2 {[%clk 0:00:07]} 44. Re1 {[%clk 0:00:01]}  Qh5+ {[%clk 0:00:07]} 45. Nh4 {[%clk 0:00:01]}  Ng4+ {[%clk 0:00:07]} 46. Kh1 {[%clk 0:00:02]}  Qd5+ {[%clk 0:00:07]} 47. Ng2 {[%clk 0:00:02]}  Kg7 {[%clk 0:00:05]} 48. Rf1 {[%clk 0:00:01]}  Qh5+ {[%clk 0:00:03]} 49. Nh4 {[%clk 0:00:01]}  Qd5+ {[%clk 0:00:03]} 50. Ng2 {[%clk 0:00:01]}  Re2 {[%clk 0:00:03]} 51. Re1 {[%clk 0:00:01]}  Nf2+ {[%clk 0:00:02]} 52. Qxf2 {[%clk 0:00:01]}  Rxf2 {[%clk 0:00:02]} 53. Rg1 {[%clk 0:00:01]}  Qh5+ {[%clk 0:00:02]} 54. Nh4 {[%clk 0:00:01]}  g5 {[%clk 0:00:03]} 55. Rg2 {[%clk 0:00:01]}  Rf1+ {[%clk 0:00:03]} 56. Kh2 {[%clk 0:00:02]}  gxh4 {[%clk 0:00:04]} 57. gxh4+ {[%clk 0:00:03]}  Kh7 {[%clk 0:00:04]} 58. Rg5 {[%clk 0:00:03]}  hxg5 {[%clk 0:00:04]} 0-1


[Site "https://www.chess.com"]

[Event "Titled Tuesday Blitz February 22 Late 2022"]
[White "Andreikin, Dmitry"]
[Black "Kukhmazov, Arsen"]
[WhiteFideId "4158814"]
[BlackFideId "24108260"]
[WhiteElo "2736"]
[BlackElo "2487"]
[Result "1-0"]
[Round "09"]
[TimeControl "180+1"]
[Date "2022.02.22"]
[WhiteClock "0:00:11"]
[BlackClock "0:00:06"]

1. d4 {[%clk 0:03:00]}  d5 {[%clk 0:02:56]} 2. Nf3 {[%clk 0:02:57]}  Nf6 {[%clk 0:02:56]} 3. c4 {[%clk 0:02:55]}  c6 {[%clk 0:02:55]} 4. e3 {[%clk 0:02:50]}  Bg4 {[%clk 0:02:55]} 5. h3 {[%clk 0:02:48]}  Bh5 {[%clk 0:02:55]} 6. Nc3 {[%clk 0:02:47]}  e6 {[%clk 0:02:55]} 7. g4 {[%clk 0:02:45]}  Bg6 {[%clk 0:02:55]} 8. Ne5 {[%clk 0:02:45]}  Nbd7 {[%clk 0:02:54]} 9. Nxg6 {[%clk 0:02:43]}  hxg6 {[%clk 0:02:55]} 10. a3 {[%clk 0:02:36]}  g5 {[%clk 0:02:46]} 11. Bd2 {[%clk 0:02:33]}  Bd6 {[%clk 0:02:46]} 12. Bg2 {[%clk 0:02:13]}  Nf8 {[%clk 0:02:21]} 13. Qb3 {[%clk 0:02:09]}  Qb6 {[%clk 0:02:15]} 14. Qa4 {[%clk 0:01:56]}  dxc4 {[%clk 0:02:00]} 15. Qxc4 {[%clk 0:01:51]}  Ng6 {[%clk 0:02:00]} 16. O-O-O {[%clk 0:01:50]}  Nh4 {[%clk 0:01:54]} 17. Be4 {[%clk 0:01:49]}  O-O-O {[%clk 0:01:53]} 18. Kc2 {[%clk 0:01:29]}  Nxe4 {[%clk 0:01:35]} 19. Nxe4 {[%clk 0:01:30]}  Be7 {[%clk 0:01:36]} 20. Bb4 {[%clk 0:01:24]}  Bxb4 {[%clk 0:01:33]} 21. axb4 {[%clk 0:01:25]}  Rd5 {[%clk 0:01:18]} 22. Nc3 {[%clk 0:01:21]}  Rd7 {[%clk 0:01:18]} 23. Ra1 {[%clk 0:01:17]}  Kb8 {[%clk 0:01:14]} 24. Ra5 {[%clk 0:01:16]}  Nf3 {[%clk 0:01:08]} 25. Rha1 {[%clk 0:00:52]}  Rxh3 {[%clk 0:00:39]} 26. Na4 {[%clk 0:00:52]}  Nxd4+ {[%clk 0:00:26]} 27. exd4 {[%clk 0:00:47]}  Qxd4 {[%clk 0:00:27]} 28. Qxd4 {[%clk 0:00:46]}  Rxd4 {[%clk 0:00:28]} 29. Rxg5 {[%clk 0:00:43]}  Rf4 {[%clk 0:00:15]} 30. Rf1 {[%clk 0:00:26]}  g6 {[%clk 0:00:15]} 31. Nc3 {[%clk 0:00:21]}  Rhf3 {[%clk 0:00:15]} 32. Re5 {[%clk 0:00:17]}  Rxf2+ {[%clk 0:00:14]} 33. Rxf2 {[%clk 0:00:18]}  Rxf2+ {[%clk 0:00:15]} 34. Re2 {[%clk 0:00:18]}  Rf4 {[%clk 0:00:16]} 35. g5 {[%clk 0:00:17]}  Kc7 {[%clk 0:00:13]} 36. Ne4 {[%clk 0:00:17]}  b6 {[%clk 0:00:12]} 37. Kd3 {[%clk 0:00:17]}  Rf3+ {[%clk 0:00:12]} 38. Re3 {[%clk 0:00:17]}  Rf5 {[%clk 0:00:12]} 39. Rh3 {[%clk 0:00:15]}  e5 {[%clk 0:00:06]} 40. Ke3 {[%clk 0:00:13]}  Kd7 {[%clk 0:00:05]} 41. Rh8 {[%clk 0:00:12]}  Kc7 {[%clk 0:00:03]} 42. Re8 {[%clk 0:00:12]}  Kd7 {[%clk 0:00:03]} 43. Ra8 {[%clk 0:00:12]}  a5 {[%clk 0:00:03]} 44. bxa5 {[%clk 0:00:11]}  bxa5 {[%clk 0:00:04]} 45. Rxa5 {[%clk 0:00:11]}  Ke6 {[%clk 0:00:05]} 46. Rc5 {[%clk 0:00:11]}  Kd7 {[%clk 0:00:05]} 47. b4 {[%clk 0:00:12]}  Kc7 {[%clk 0:00:06]} 48. b5 {[%clk 0:00:11]} 1-0


[Site "https://www.chess.com"]

[Event "Titled Tuesday Blitz February 22 Late 2022"]
[White "Araujo Filho, Luiz Antonio Coel"]
[Black "P., Komal Kishore"]
[WhiteFideId "2130661"]
[BlackFideId "5016703"]
[WhiteElo "2226"]
[BlackElo "2058"]
[Result "1-0"]
[Round "09"]
[TimeControl "180+1"]
[Date "2022.02.23"]
[WhiteClock "0:00:13"]
[BlackClock "0:00:02"]

1. d4 {[%clk 0:03:00]}  d5 {[%clk 0:01:44]} 2. Nf3 {[%clk 0:02:39]}  Nf6 {[%clk 0:01:43]} 3. e3 {[%clk 0:02:35]}  Bg4 {[%clk 0:01:40]} 4. Nbd2 {[%clk 0:02:34]}  e6 {[%clk 0:01:40]} 5. c4 {[%clk 0:02:32]}  c6 {[%clk 0:01:38]} 6. Bd3 {[%clk 0:02:31]}  Be7 {[%clk 0:01:34]} 7. O-O {[%clk 0:02:30]}  O-O {[%clk 0:01:33]} 8. Qc2 {[%clk 0:02:29]}  Bh5 {[%clk 0:01:30]} 9. Ne5 {[%clk 0:02:26]}  Nbd7 {[%clk 0:01:25]} 10. f4 {[%clk 0:02:24]}  Bg6 {[%clk 0:01:16]} 11. Nxg6 {[%clk 0:02:19]}  hxg6 {[%clk 0:01:15]} 12. Rf3 {[%clk 0:02:04]}  Qc7 {[%clk 0:01:12]} 13. Rh3 {[%clk 0:01:54]}  Rfc8 {[%clk 0:01:10]} 14. Nf3 {[%clk 0:01:47]}  Nf8 {[%clk 0:01:09]} 15. Ne5 {[%clk 0:01:44]}  Bd6 {[%clk 0:01:06]} 16. Bd2 {[%clk 0:01:38]}  a6 {[%clk 0:00:48]} 17. c5 {[%clk 0:01:34]}  Be7 {[%clk 0:00:40]} 18. Bxg6 {[%clk 0:01:22]}  fxg6 {[%clk 0:00:37]} 19. Nxg6 {[%clk 0:01:21]}  Nxg6 {[%clk 0:00:27]} 20. Qxg6 {[%clk 0:01:22]}  Bf8 {[%clk 0:00:26]} 21. Rf1 {[%clk 0:01:04]}  Qf7 {[%clk 0:00:26]} 22. Qg5 {[%clk 0:01:02]}  Ne4 {[%clk 0:00:24]} 23. Qh4 {[%clk 0:01:02]}  Qg6 {[%clk 0:00:22]} 24. Be1 {[%clk 0:00:54]}  Kf7 {[%clk 0:00:20]} 25. f5 {[%clk 0:00:51]}  exf5 {[%clk 0:00:18]} 26. Rhf3 {[%clk 0:00:48]}  Be7 {[%clk 0:00:16]} 27. Rxf5+ {[%clk 0:00:47]}  Kg8 {[%clk 0:00:11]} 28. Qxe7 {[%clk 0:00:37]}  Re8 {[%clk 0:00:10]} 29. Qf7+ {[%clk 0:00:31]}  Qxf7 {[%clk 0:00:08]} 30. Rxf7 {[%clk 0:00:32]}  Rab8 {[%clk 0:00:06]} 31. h4 {[%clk 0:00:27]}  Red8 {[%clk 0:00:03]} 32. Rc7 {[%clk 0:00:19]}  Nf6 {[%clk 0:00:02]} 33. Bg3 {[%clk 0:00:15]}  Re8 {[%clk 0:00:02]} 34. Bf4 {[%clk 0:00:13]} 1-0


[Site "https://www.chess.com"]

[Event "Titled Tuesday Blitz February 22 Late 2022"]
[White "Avramidou, Anastasia"]
[Black "Goryachkina, Aleksandra"]
[WhiteFideId "4239873"]
[BlackFideId "4147103"]
[WhiteElo "2183"]
[BlackElo "2426"]
[Result "0-1"]
[Round "09"]
[TimeControl "180+1"]
[Date "2022.02.22"]
[WhiteClock "0:00:22"]
[BlackClock "0:01:29"]

1. c4 {[%clk 0:02:58]}  Nf6 {[%clk 0:02:57]} 2. Nc3 {[%clk 0:02:58]}  e6 {[%clk 0:02:55]} 3. e4 {[%clk 0:02:57]}  c5 {[%clk 0:02:53]} 4. e5 {[%clk 0:02:50]}  Ng8 {[%clk 0:02:52]} 5. d3 {[%clk 0:02:43]}  Nc6 {[%clk 0:02:51]} 6. f4 {[%clk 0:02:34]}  d6 {[%clk 0:02:51]} 7. exd6 {[%clk 0:02:34]}  Bxd6 {[%clk 0:02:51]} 8. Nf3 {[%clk 0:02:35]}  Nge7 {[%clk 0:02:51]} 9. Be2 {[%clk 0:02:35]}  O-O {[%clk 0:02:50]} 10. O-O {[%clk 0:02:36]}  b6 {[%clk 0:02:42]} 11. Kh1 {[%clk 0:02:25]}  Bb7 {[%clk 0:02:42]} 12. Ne4 {[%clk 0:02:17]}  Bc7 {[%clk 0:02:37]} 13. Ng3 {[%clk 0:02:15]}  Nf5 {[%clk 0:02:27]} 14. Nxf5 {[%clk 0:02:13]}  exf5 {[%clk 0:02:28]} 15. b3 {[%clk 0:02:11]}  Re8 {[%clk 0:02:24]} 16. Qd2 {[%clk 0:01:52]}  Qd6 {[%clk 0:02:16]} 17. Bd1 {[%clk 0:01:21]}  Rad8 {[%clk 0:02:14]} 18. Bc2 {[%clk 0:01:15]}  Nb4 {[%clk 0:01:58]} 19. Bb2 {[%clk 0:00:42]}  Nxc2 {[%clk 0:01:51]} 20. Qxc2 {[%clk 0:00:42]}  Qxf4 {[%clk 0:01:49]} 21. Ne5 {[%clk 0:00:31]}  Qh4 {[%clk 0:01:33]} 22. Rxf5 {[%clk 0:00:22]}  f6 {[%clk 0:01:29]} 0-1


[Site "https://www.chess.com"]